Cogmind - Beta 9.4 @@@ ROGUE MODE // 2020.01.08 @ 16:52:45 Player: Judas Result: Destroyed by B-75 Beast with Magnetic Acceleration Cannon Performance ------------- Evolutions (2) 1000 Regions Visited (7) 1400 Robots Destroyed (45) 225 Value Destroyed (1138) 1138 Prototype IDs (24) 480 Alien Tech Used (0) 0 Bonus (502) 502 TOTAL SCORE: 4745 Bonus ------- High Alert Combat Kills 2 Entered Garrisons 200 Aligned with FarCom 300 Cogmind --------- Core Integrity 0/550 Matter 142/300 Energy 73/100 System Corruption 0% Temperature Cool (12) Movement Core (100) Ox1 Location -8/Garrison Parts ------- > --- POWER (1) -------- (None) > --- PROPULSION (2) --- (None) > --- UTILITY (5) ------ Improved Core Shielding Improved Core Shielding > --- WEAPON (3) ------- (None) > --- INVENTORY (4) ---- Light Treads Titanium Leg Grenade Launcher Peak State ------------ > --- POWER ------------ Light Angular Momentum Engine > --- PROPULSION ------- Light Treads Light Treads > --- UTILITY ---------- Humpback Signal Interpreter Advanced Terrain Scanner Modified TNC > --- WEAPON ----------- Heavy Assault Rifle Heavy Machine Gun Assault Cannon > --- INVENTORY -------- Improved Ion Engine Nuclear Core Nuclear Core Light Nuclear Core Reinforced Deuterium Engine Light Treads Light Treads Aluminum Leg Aluminum Leg Carbon-fiber Leg Carbon-fiber Leg Titanium Leg High-capacity Matter Pod Insulated Plating Relay Coupler [Grunt] Relay Coupler [Sentry] Heavy EM Pulse Gun Heavy EM Pulse Gun Particle Gun Light Assault Rifle Heavy Assault Rifle Autogun Light Cannon Grenade Launcher [Rating: 34] Favorites ----------- Power Light Ion Engine Engine Light Ion Engine Power Core Light Nuclear Core Propulsion Light Treads Treads Light Treads Leg Carbon-fiber Leg Wheel Compact Wheel Utility Signal Interpreter Device Improved Terrain Scanner Storage Humpback Processor Signal Interpreter Protection Medium Armor Plating Weapon Light Cannon Energy Gun Medium Laser Ballistic Gun Autogun Ballistic Cannon Light Cannon Build | -11 -10 -9 -9 -9 -8 -8 -8 ------- Run | Scr Mat Mat Min Exi Min Mat Gar Slots Evolved 4 | . . 2 . . . 2 . Power . | . . . . . . . . Propulsion . | . . . . . . . . Utility 3 | . . 1 . . . 2 . Weapon 1 | . . 1 . . . . . Parts Attached 51 | 7 7 9 1 2 3 8 14 Power 6 | 1 1 1 1 . 1 . 1 Engine 5 | 1 1 1 1 . 1 . . Core 1 | . . . . . . . 1 Reactor . | . . . . . . . . Propulsion 12 | 2 2 1 . . 2 3 2 Treads 6 | . 2 1 . . . 2 1 Leg 4 | . . . . . 2 1 1 Wheel 2 | 2 . . . . . . . Hover . | . . . . . . . . Flight . | . . . . . . . . Utility 12 | 2 1 2 . 2 . 2 3 Device 2 | 1 . . . . . . 1 Storage 4 | 1 1 . . 2 . . . Processor 2 | . . 1 . . . 1 . Hackware . | . . . . . . . . Protection 4 | . . 1 . . . 1 2 Artifact . | . . . . . . . . Weapon 21 | 2 3 5 . . . 3 8 Energy Gun 4 | 1 . . . . . . 3 Energy Cannon . | . . . . . . . . Ballistic Gun 13 | 1 2 4 . . . 2 4 Ballistic Cannon 4 | . 1 1 . . . 1 1 Launcher . | . . . . . . . . Special Weapon . | . . . . . . . . Impact Weapon . | . . . . . . . . Slashing Weapon . | . . . . . . . . Piercing Weapon . | . . . . . . . . Special Melee Weapon . | . . . . . . . . Unidentified Prototypes . | . . . . . . . . Parts Lost 25 | . 1 3 . . 1 . 20 Power 2 | . . . . . . . 2 Propulsion 5 | . 1 . . . 1 . 3 Utility 6 | . . 1 . . . . 5 Weapon 12 | . . 2 . . . . 10 Highest Loss Streak 19 | . 1 2 . . 1 . 19 Average Slot Usage (%) 92 | . 99 97 100 97 87 89 83 Engine 10 | . 14 11 11 11 11 9 7 Treads 15 | . 11 22 22 22 14 . 16 Leg 3 | . . . . . 6 17 . Wheel 2 | . 15 . . . . . . Device 3 | . 14 5 . . . . 5 Storage 11 | . 14 11 11 18 11 9 7 Processor 11 | . . 11 11 11 11 18 17 Protection 3 | . . 4 11 . . 8 4 Ballistic Gun 13 | . 14 14 11 11 11 14 16 Ballistic Cannon 16 | . 11 17 22 22 22 12 8 Naked Turns . | . . . . . . . . Heaviest Build 107 | 11 24 35 35 92 98 107 107 Greatest Support 40 | 26 40 40 40 40 40 40 40 Greatest Overweight (x) 6 | 1 1 . . 2 6 3 4 Average Overweight (x) 1 | . . . . 1 2 2 1 Largest Inventory Capacity 24 | 6 10 10 10 24 24 24 24 Average Capacity 17 | 5 8 10 10 17 24 24 21 Most Carried 24 | 6 10 10 10 16 17 20 24 Average Carried 13 | 4 7 9 10 12 15 17 20 Final Capacity 24 | 6 10 10 10 24 24 24 4 Final Carried 20 | 6 10 10 10 14 17 20 3 Class Distribution -------------------- 48% | Hauler-Skirmisher 15% | Mutant 12% | Gunner 12% | Tank 4% | Scavenger-Skirmisher 3% | Hauler-Gunner Dominant Class ---------------- Mutant | -10/Materials Scavenger-Skirmisher | -9/Materials Tank | -9/Mines Gunner | -9/Exiles Hauler-Skirmisher | -8/Mines Hauler-Skirmisher | -8/Materials Hauler-Skirmisher | -8/Garrison Resources | -11 -10 -9 -9 -9 -8 -8 -8 ----------- Run | Scr Mat Mat Min Exi Min Mat Gar Matter Collected 1754 | 276 83 320 36 398 124 128 389 Remotely . | . . . . . . . . Salvage Created 1312 | 85 127 382 12 . 137 128 441 Parts 101 | 4 16 39 2 . 7 7 26 Haulers Intercepted 2 | . 1 . . . . 1 . Recyclers Shooed 1 | . . 1 . . . . . Parts Field Recycled . | . . . . . . . . Retrieved Matter . | . . . . . . . . Parts Self-Destructed . | . . . . . . . . Prevented . | . . . . . . . . Kills | -11 -10 -9 -9 -9 -8 -8 -8 ------- Run | Scr Mat Mat Min Exi Min Mat Gar Combat Hostiles Destroyed 36 | . 6 17 . . 3 1 9 Guns 25 | . 4 13 . . 1 1 6 Cannons 11 | . 2 4 . . 2 . 3 Classes Destroyed 10 | 2 3 2 . . 1 . 2 Worker 1 | . . . . . 1 . . Tunneler 2 | 1 . . 1 . . . . Hauler 2 | . 1 . . . . 1 . Recycler 3 | 1 . 1 . . . 1 . Watcher 1 | . 1 . . . . . . Swarmer 21 | . 6 15 . . . . . Grunt 8 | . . 1 . . 3 . 4 Brawler 2 | . . . . . . . 2 Duelist 1 | . . . . . . . 1 Sentry 4 | . . 1 . . . 1 2 Best Kill Streak 7 | 2 4 7 1 . 2 2 3 Combat Bots Only 7 | . 3 7 . . 2 1 3 Max Kills in Single Turn 1 | 1 1 1 1 . 1 1 1 Gunslinging . | . . . . . . . . Exploded . | . . . . . . . . Melee . | . . . . . . . . Uniques/NPCs Destroyed . | . . . . . . . . Combat | -11 -10 -9 -9 -9 -8 -8 -8 -------- Run | Scr Mat Mat Min Exi Min Mat Gar Damage Taken 3804 | . 295 694 . . 321 124 2370 Core 734 | . 31 98 . . 53 28 524 Absorbed by Shields . | . . . . . . . . Core Remaining (%) 83 | 100 87 . . . 62 . . Volleys Fired 142 | 6 33 36 3 . 11 9 44 Largest 3 | 2 2 3 3 . 3 3 3 Hottest 97 | 70 70 93 93 . 93 92 97 Shots Fired 362 | 12 66 105 9 . 33 27 110 Gun 214 | 12 42 48 3 . 11 18 80 Cannon 148 | . 24 57 6 . 22 9 30 Launcher . | . . . . . . . . Special . | . . . . . . . . Kinetic 343 | 6 57 105 9 . 33 27 106 Thermal 17 | 6 9 . . . . . 2 Explosive . | . . . . . . . . Electromagnetic 2 | . . . . . . . 2 Robot Hit Streak 13 | 3 7 5 4 . 4 12 13 Robot Miss Streak 9 | 2 4 9 1 . 2 2 5 Penetration Max . | . . . . . . . . Secondary Targets 1 | . 1 . . . . . . Max Gunslinging Chain 1 | . 1 . . . . . . Shots Hit Robots 181 | 7 32 32 4 . 17 20 69 Core Hits 75 | 3 11 22 1 . 8 5 25 Critical Hits 3 | . . 1 . . . . 2 Critical Kills 1 | . . 1 . . . . . Critical Parts Destroyed 1 | . . . . . . . 1 Melee Attacks . | . . . . . . . . Impact . | . . . . . . . . Slashing . | . . . . . . . . Piercing . | . . . . . . . . Sneak Attacks . | . . . . . . . . Combat Hostiles . | . . . . . . . . Follow-up Attacks . | . . . . . . . . Damage Inflicted 2853 | 67 377 485 57 . 295 330 1242 Guns 1686 | 67 198 250 26 . 100 187 858 Cannons 1154 | . 178 235 31 . 183 143 384 Explosions . | . . . . . . . . Melee . | . . . . . . . . Ramming 13 | . 1 . . . 12 . . Kinetic 2682 | 16 313 485 57 . 283 330 1198 Thermal 139 | 51 63 . . . . . 25 Explosive . | . . . . . . . . Electromagnetic 19 | . . . . . . . 19 Impact . | . . . . . . . . Slashing . | . . . . . . . . Piercing . | . . . . . . . . Highest Corruption . | . . . . . . . . Average Corruption . | . . . . . . . . Corruption Purged . | . . . . . . . . Overload Shots . | . . . . . . . . Overflow Damage 13 | . 5 . . . 3 4 1 Projectiles 13 | . 5 . . . 3 4 1 Explosions . | . . . . . . . . Melee . | . . . . . . . . Knockbacks 9 | . . 3 1 . 3 1 1 Impact . | . . . . . . . . Kinetic 9 | . . 3 1 . 3 1 1 Secondary . | . . . . . . . . Self-Inflicted Damage . | . . . . . . . . Shots . | . . . . . . . . Rammed 4 | . 1 . . . 3 . . Targets Rammed 4 | . 1 . . . 3 . . Kicked . | . . . . . . . . Crushed . | . . . . . . . . Highest Temperature 277 | 80 110 277 33 . 226 120 255 Average Temperature 65 | 40 24 68 20 . 96 46 88 Received Heat Transfer 801 | . . 36 . . 180 45 540 Effects 3 | . . . . . . . 3 Interference 3 | . . . . . . . 3 Siege Activations . | . . . . . . . . Robots Corrupted . | . . . . . . . . Combat Hostiles . | . . . . . . . . Parts Fried . | . . . . . . . . Impact Corruptions . | . . . . . . . . Robots Melted . | . . . . . . . . Combat Hostiles . | . . . . . . . . Parts Melted . | . . . . . . . . Heat Transferred 370 | 148 185 . . . . . 37 Parts Sabotaged . | . . . . . . . . Parts Stolen . | . . . . . . . . Parts Stripped . | . . . . . . . . Power Chain Reactions . | . . . . . . . . Missiles Intercepted . | . . . . . . . . Alert | -11 -10 -9 -9 -9 -8 -8 -8 ------- Run | Scr Mat Mat Min Exi Min Mat Gar Peak Influence 415 | 10 210 415 171 . 70 63 345 Average Influence 105 | 3 98 167 166 . 19 13 215 Maximum Alert Level 2 | . 1 2 . . . . 1 Low Security (%) 80 | 100 88 52 100 . 100 100 41 Level 1 19 | . 11 42 . . . . 58 Level 2 . | . . 4 . . . . . Level 3 . | . . . . . . . . Level 4 . | . . . . . . . . Level 5 . | . . . . . . . . High Security . | . . . . . . . . Max Security . | . . . . . . . . Squads Dispatched 3 | . 2 1 . . . . . Investigation 1 | . 1 . . . . . . Extermination . | . . . . . . . . Reinforcement 2 | . 1 1 . . . . . Assault . | . . . . . . . . Garrison . | . . . . . . . . Intercept . | . . . . . . . . Construction Impeded . | . . . . . . . . Haulers Reinforced . | . . . . . . . . Stealth | -11 -10 -9 -9 -9 -8 -8 -8 --------- Run | Scr Mat Mat Min Exi Min Mat Gar Distress Signals 2 | . 1 1 . . . . . Communications Jammed . | . . . . . . . . Distress Signals . | . . . . . . . . Times Spotted 55 | . 13 22 1 . 4 2 13 Peak Tracking Total 6 | . 5 6 2 . 3 1 4 Tactical Retreats 5 | . . 1 . . 1 . 3 Traps | -11 -10 -9 -9 -9 -8 -8 -8 ------- Run | Scr Mat Mat Min Exi Min Mat Gar Traps Triggered 6 | . 1 . . . . . 5 Indirectly . | . . . . . . . . Trap Hack Attempts . | . . . . . . . . Triggered . | . . . . . . . . Disarmed . | . . . . . . . . Reprogrammed . | . . . . . . . . Reused . | . . . . . . . . Traps Extracted . | . . . . . . . . Installed . | . . . . . . . . Triggered . | . . . . . . . . Machines | -11 -10 -9 -9 -9 -8 -8 -8 ---------- Run | Scr Mat Mat Min Exi Min Mat Gar Machines Disabled 2 | . . 1 . . . . 1 Max in Single Turn 1 | . . 1 . . . . 1 Garrison Relay 1 | . . . . . . . 1 Machines Sabotaged . | . . . . . . . . Garrisons Compromised . | . . . . . . . . Overloaded Fab Kills . | . . . . . . . . Fab Network Shutdowns . | . . . . . . . . Hacking | -11 -10 -9 -9 -9 -8 -8 -8 --------- Run | Scr Mat Mat Min Exi Min Mat Gar Machines Accessed 15 | . 4 2 1 5 1 2 . Terminals 9 | . 4 2 1 . 1 1 . Fabricators . | . . . . . . . . Repair Stations . | . . . . . . . . Recycling Units . | . . . . . . . . Scanalyzers . | . . . . . . . . Garrison Access 1 | . . . . . . 1 . Total Hacks 44 | . 7 4 1 28 2 2 . Successful 43 | . 7 4 1 28 1 2 . Failed 1 | . . . . . 1 . . Catastrophic . | . . . . . . . . Database Lockouts . | . . . . . . . . Manual 12 | . 5 2 1 1 2 1 . Terminals 15 | . 7 4 1 . 2 1 . Fabricators . | . . . . . . . . Repair Stations . | . . . . . . . . Recycling Units . | . . . . . . . . Scanalyzers . | . . . . . . . . Garrison Access 1 | . . . . . . 1 . Terminal Hacks 33 | . 3 2 . 28 . . . Record 28 | . . 1 . 27 . . . Prototype ID Bank 1 | . 1 . . . . . . Unreport Threat 1 | . . 1 . . . . . Recall Investigation 2 | . 2 . . . . . . EX-Prototype ID Bank 1 | . . . . 1 . . . Fabricator Hacks . | . . . . . . . . Repair Station Hacks . | . . . . . . . . Recycling Unit Hacks . | . . . . . . . . Scanalyzer . | . . . . . . . . Garrison Access Hacks 1 | . . . . . . 1 . Unlock Access 1 | . . . . . . 1 . Unauthorized Hacks 19 | . 8 4 2 . 3 2 . Terminals 9 | . 4 2 1 . 1 1 . Track 1 | . 1 . . . . . . Botnet 8 | . 3 2 1 . 1 1 . Fabricators . | . . . . . . . . Repair Stations . | . . . . . . . . Recycling Units . | . . . . . . . . Scanalyzers . | . . . . . . . . Garrison Access . | . . . . . . . . Data Cores Recovered . | . . . . . . . . Used . | . . . . . . . . Hacking Detections 4 | . 1 2 . . . 1 . Full Trace Events . | . . . . . . . . Feedback Events . | . . . . . . . . Feedback Blocked . | . . . . . . . . Robot Schematics Acquired . | . . . . . . . . Robots Built . | . . . . . . . . Matter . | . . . . . . . . Time . | . . . . . . . . Total Robot Build Rating . | . . . . . . . . Part Schematics Acquired . | . . . . . . . . Parts Built . | . . . . . . . . Matter . | . . . . . . . . Time . | . . . . . . . . Total Part Build Rating . | . . . . . . . . Parts Repaired . | . . . . . . . . Time . | . . . . . . . . Parts Recycled . | . . . . . . . . Recycled Matter . | . . . . . . . . Retrieved Matter . | . . . . . . . . Retrieved Components . | . . . . . . . . Parts Scanalyzed . | . . . . . . . . Part Schematics Acquired . | . . . . . . . . Parts Damaged . | . . . . . . . . Bothacking | -11 -10 -9 -9 -9 -8 -8 -8 ------------ Run | Scr Mat Mat Min Exi Min Mat Gar Used RIF Installer . | . . . . . . . . Robots Hacked . | . . . . . . . . Non-combat . | . . . . . . . . Combat . | . . . . . . . . Robot Hacks Applied . | . . . . . . . . Relay Couplers Released 4 | . . . . . . . 4 Machine Destruction 4 | . . . . . . . 4 Robots Rewired . | . . . . . . . . Allies Hacked . | . . . . . . . . Hacks Repelled . | . . . . . . . . Allies | -11 -10 -9 -9 -9 -8 -8 -8 -------- Run | Scr Mat Mat Min Exi Min Mat Gar Total Allies . | . . . . . . . . Largest Group . | . . . . . . . . Highest-Rated Group . | . . . . . . . . Highest-Rated Ally . | . . . . . . . . Total Orders . | . . . . . . . . Ally Attacks . | . . . . . . . . Total Damage . | . . . . . . . . Kills . | . . . . . . . . Allies Corrupted . | . . . . . . . . Allies Melted . | . . . . . . . . Intel | -11 -10 -9 -9 -9 -8 -8 -8 ------- Run | Scr Mat Mat Min Exi Min Mat Gar Robot Analysis Total . | . . . . . . . . Derelict Logs Recovered . | . . . . . . . . Drone Launches . | . . . . . . . . Drone Recoveries . | . . . . . . . . Exploration | -11 -10 -9 -9 -9 -8 -8 -8 ------------- Run | Scr Mat Mat Min Exi Min Mat Gar Turns Passed 3954 | 86 514 351 346 667 854 409 727 Spaces Moved 1910 | 60 323 144 210 354 364 166 289 Core 27 | 9 . . . . . . 18 Treads 1323 | . 99 144 210 354 238 10 268 Legs 285 | . . . . . 126 156 3 Wheels 275 | 51 224 . . . . . . Hover . | . . . . . . . . Flight . | . . . . . . . . Fastest Speed 50 | 50 90 160 160 160 200 200 50 Average Speed 172 | 88 111 160 160 182 204 212 194 Slowest Speed 300 | 100 160 160 160 200 300 215 250 Overloaded Moves . | . . . . . . . . Propulsion Burnouts . | . . . . . . . . Robots Hopped . | . . . . . . . . Cave-ins Triggered . | . . . . . . . . Exploration Rate (%) 41 | 4 47 21 41 68 84 20 48 Regions Visited 7 Branch Regions 3 Pre-discovered Areas 1 | . . . . 1 . . . Known Exits Taken 5 | . . 1 1 1 1 1 . Unknown Exits Taken 2 | 1 1 . . . . . . Scrap Searched 2 | . . . 1 . 1 . . Spaces Dug . | . . . . . . . . Terrain Destroyed 1 | . . . . . . 1 . Melee . | . . . . . . . . Projectile 1 | . . . . . . 1 . AOE . | . . . . . . . . Actions | -11 -10 -9 -9 -9 -8 -8 -8 --------- Run | Scr Mat Mat Min Exi Min Mat Gar Total 2297 | 78 417 193 214 376 449 202 368 Wait 129 | . 44 . . . 66 13 6 Move 1904 | 59 322 143 209 353 363 166 289 Hop . | . . . . . . . . Pick Up 40 | 6 5 2 . 18 2 2 5 Fast Attach 28 | 7 1 2 . . 2 3 13 Attach 8 | . 1 3 . 1 . 2 1 Detach 2 | . . . . . . 2 . Swap 16 | . 5 4 1 1 1 3 1 Drop 18 | . 5 3 1 3 1 2 3 Fire 142 | 6 33 36 3 . 11 9 44 Melee . | . . . . . . . . Ram 1 | . 1 . . . . . . Kick . | . . . . . . . . Crush 3 | . . . . . 3 . . Escape Stasis 6 | . . . . . . . 6 Rewire . | . . . . . . . . Trap . | . . . . . . . . Miscellaneous . | . . . . . . . . Route ------- -11/Scrapyard -10/Materials (discovered 2 exits: *Mat / [*Min]) -9/Materials -9/Mines -9/Exiles -8/Mines -8/Materials -8/Garrison (discovered 1 exit: *Fac) History --------- Turn | Location | Event 7 | -11/Scrapyard | Discovered new exit (range 16) 87 | -11/Scrapyard | Entered Materials 131 | -10/Materials | Discovered new exit (range 9) 187 | -10/Materials | Discovered new exit (range 15) 333 | -10/Materials | Build established: Mutant 601 | -10/Materials | Entered another Materials area 601 | -9/Materials | Evolved 2 slots: Utility x1, Weapon x1 898 | -9/Materials | Discovered new exit (range 12) 951 | -9/Materials | Identified exit to Mines 952 | -9/Materials | Entered Mines 958 | -9/Mines | Destroyed 7 combat bots 1148 | -9/Mines | Build established: Tank 1193 | -9/Mines | Assembled infested the area 1253 | -9/Mines | Met 8R-AWN 1290 | -9/Mines | Discovered new exit (range 5) 1294 | -9/Mines | Identified exit to Exiles 1298 | -9/Mines | Entered Exiles 1362 | -9/Exiles | Welcomed by 8R-AWN 1400 | -9/Exiles | Met EX-HEX 1461 | -9/Exiles | Met EX-BIN 1497 | -9/Exiles | Aligned with FarCom system 1499 | -9/Exiles | Given EX-Vault access code 1587 | -9/Exiles | Opened EX-Vault 1605 | -9/Exiles | Found Modified TNC 1636 | -9/Exiles | Build established: Gunner 1644 | -9/Exiles | Warned to stay clear of 0b10 Research branches 1692 | -9/Exiles | Met EX-DEC 1768 | -9/Exiles | Learned location of Zion (-6) 1933 | -9/Exiles | Discovered new exit (range 14) 1957 | -9/Exiles | Identified exit to Mines 1965 | -9/Exiles | Left Exiles lab with Modified TNC 1965 | -9/Exiles | Entered Mines 2261 | -8/Mines | Build established: Hauler-Skirmisher 2807 | -8/Mines | Discovered new exit (range 5) 2817 | -8/Mines | Identified exit to Materials 2819 | -8/Mines | Entered Materials 2819 | -8/Materials | Evolved 2 slots: Utility x2 3228 | -8/Materials | Identified exit to Garrison 3228 | -8/Materials | Entered Garrison 3294 | -8/Garrison | Triggered checkpoint 3347 | -8/Garrison | Garrison Relay disabled 3442 | -8/Garrison | Triggered checkpoint 3572 | -8/Garrison | Discovered new exit (range 9) 3596 | -8/Garrison | Identified exit to Factory 3724 | -8/Garrison | Triggered checkpoint 3834 | -8/Garrison | Spotted B-75 Beast 3875 | -8/Garrison | Core integrity fell below 50% 3936 | -8/Garrison | Core integrity fell below 20% 3955 | -8/Garrison | Destroyed by B-75 Beast with Magnetic Acceleration Cannon Last Messages --------------- 03913_ Signal Interpreter destroyed. 03917_ Acquired Carbon-fiber Leg. 03920_ Acquired Relay Coupler [Grunt]. 03920_ Relay Coupler [Grunt] fries itself. 03922_ Acquired Lgt. Cannon. 03925_ Carbon-fiber Leg destroyed. 03925_ Lgt. Cannon destroyed. 03925_ Modified TNC destroyed. 03926_ Acquired Hvy. EM Pulse Gun. 03929_ Acquired Autogun. 03935_ Hvy. EM Pulse Gun destroyed. 03935_ Autogun destroyed. 03937_ Acquired Lgt. Assault Rifle. 03940_ Acquired Hvy. Assault Rifle. 03941_ The unstable cave ceiling collapses. 03946_ Knocked back. 03948_ B-75 Beast suffers critical hit. 03948_ Destroyed Rnf. Deuterium Engine. 03950_ Hvy. Assault Rifle destroyed. 03955_ Lgt. Assault Rifle destroyed. Map ----- +----------------------------------------------------+ | ?????# #??????#?? ????????????????????????????? | | ?#???# #??#?#??????#??????????????????????????? | | ????## #???##???#?#######????#????????????????? | | ?##??# #?#?#?#?????# #??????????#???????????? | | #!!!## #???######+## < #?#??????#?????????????? | | # #???# ! = #??#??#????????????????? | | #!!!## ###?# =** ! #?#?#????????#?????????? | | ?##??# #?#?# ###+#######????#?????#??????????? | | ???#?# ##?## %##?????#?#???#?#????????????????? | | ?????# ##??# =#????#?#??#??#???#?????????????? | | ?????# ###?# %##? #???????????????????????????? | | ###?## ##### !##? ???#?#??#??????#????????????? | | ?????# +? ???#??????#?#????????????????? | | ?????####### #?#???#?##???#??#???????????????? | | ?###?????#?# #??#?????#####????#?#????#??????? | | ???????##??# #?#?#????# #??????????#????????? | | ????#??????# #?#?????## ####???##????#??????? | | ############ ##########;;#!!#???????????#????? | | # #????????????????? | | # #???????#????????? | | # ######### ##########BB;!!#????????????#???? | | # ??##?#??# ##???#??##BB;###????????????????? | | # ?#?????## #??????## ###????????#????????? | | # ???#????# #?##??## *=# ###???#?????#?????? | | # ##?#????# ##??#??# ![# ##??????????????? | | # ^#?????#?# ##?#??####=@=[# #??#???????????? | | #^ ##??????# #?????# *[ ##??????????????? | | ^ ######## #???#?#[ ! **[ #?????????#????? | | #????##[ [ [ ##??????????????? | | #?????# # #????##????????? | | # ###########?????# ! ! !###??????????????? | | # ###??#???#??????#### ## ##????????????????? | | #????##??????????# ## #?????????????????? | | #????#???????????# #?##?????????????????? | | #???#???????#????# #?#???#??#???????????? | | = #??????????#???#####?#??????????????????? | | #%!*###?????????????##"###?##????#????????????? | | # =#??????##?#??????#"! #??#?????????????????? | | #????#???#???????#! #???#????????????????? | | #???????????###??#" #????????????????????? | | #??????????#?????#"# #????????????????????? | | # *##???????##???????### #????????????????????? | | # #???????????##??????# ###??????????????????? | | # #?#???????????????### = #??????????????????? | | # ##?????????????#????# *[#??#???????????????? | | # #??????#????????????#=/!#??????????????????? | | # #?????????????????? +*###??????????????????? | | # #????????????????# ##!#????????????????????? | | # ########?????????#??#!#????????????????????? | | # #????????????#=#????????????????????? | +----------------------------------------------------+ Best States ------------- Heat Dissipation 31 Energy Generation 18 Energy Capacity 150 Matter Stores 300 Matter Capacity 300 Sight Range 16 Terrain Scan Range 20 Terrain Scan Density 10 Armor Coverage 225 Core Shielding 30 Evasion (%) 50 Recoil Reduction 2 Item Schematics ----------------- None Robot Schematics ------------------ None Fabricated ------------ Nothing Alien Tech Used ----------------- None Achievements -------------- None Challenges ------------ None Game ------ Seed NeutralizingTargetFilter Manual? 0 Play Time 00:37:06 Cumulative 32.9 hours Start 2020.01.08 @ 16:13:20 End 2020.01.08 @ 16:52:45 Sessions 3 Manual Loads 0 Difficulty Rogue Special Mode None Game No. 60 Rogue 60 Adventurer 0 Explorer 0 Win Type - Total 0 Types 0/0/0/0/0/0/0 Lore% 24 Gallery% 29 Achievement% 24 Wizard Run 0 Options --------- ASCII 0 Keyboard 0 Movement Mouse Keybinds 0 Fullscreen 2 Font 18/SmallcapsGlow Map View 76x50 Tactical HUD 1 Map Filters NONE Filters NONE Steam 1 RUN: 1875607e-eb5f-4703-b187-37b34ff25cb4